bitfinex/quotes_BTCUSD_20241023
["timestamp","ask_amount","ask_price","bid_price","bid_amount"]
[1729671243058,0.31069544,66980.0,66979.0,0.002905]
[1729671244501,0.31069548,66980.0,66979.0,0.002905]
[1729671244743,0.29949341,66980.0,66979.0,0.002905]
[1729671244983,0.31069555,66980.0,66979.0,0.002905]
[1729671246623,0.55469495,66980.0,66979.0,0.002905]
[1729671248027,0.55469495,66980.0,66979.0,0.00205393]
[1729671248471,0.4203453,66980.0,66979.0,0.00205393]
[1729671250295,0.55477717,66980.0,66979.0,0.00205393]
[1729671251459,0.4203453,66980.0,66979.0,0.00205393]
[1729671251687,0.40914316,66980.0,66979.0,0.00205393]
[1729671251942,0.55486639,66980.0,66979.0,0.00205393]
[1729671252167,0.42043969,66980.0,66979.0,0.00205393]
[1729671256511,0.42041425,66980.0,66979.0,0.00205393]
[1729671257393,0.55482028,66980.0,66979.0,0.00205393]
[1729671257832,0.42041425,66980.0,66979.0,0.00205393]
[1729671260917,0.55481962,66980.0,66979.0,0.00205393]
[1729671261350,0.42041425,66980.0,66979.0,0.00205393]
[1729671263119,0.55481962,66980.0,66979.0,0.00205393]
[1729671263573,0.42041425,66980.0,66979.0,0.00205393]
[1729671263794,0.55482042,66980.0,66979.0,0.00205393]
[1729671264910,0.42041425,66980.0,66979.0,0.00205393]
[1729671265587,0.55482075,66980.0,66979.0,0.00205393]
[1729671265823,0.5548203,66980.0,66979.0,0.00205393]
[1729671266068,0.4204138,66980.0,66979.0,0.00205393]
[1729671266743,0.65824033,66980.0,66979.0,0.00205393]
[1729671266959,0.52383383,66980.0,66979.0,0.00205393]
[1729671268529,0.61623383,66980.0,66979.0,0.00205393]
[1729671269189,0.60503257,66980.0,66979.0,0.00205393]
[1729671269407,0.61623367,66980.0,66979.0,0.00205393]
[1729671269620,0.51281364,66980.0,66979.0,0.00205393]
[1729671270427,0.62246339,66980.0,66979.0,0.00205393]
[1729671270678,0.51281364,66980.0,66979.0,0.00205393]
[1729671271127,0.51336938,66980.0,66979.0,0.00205393]
[1729671271346,0.51281364,66980.0,66979.0,0.00205393]
[1729671271790,0.62246339,66980.0,66979.0,0.00205393]
[1729671272006,0.51281364,66980.0,66979.0,0.00205393]
[1729671272451,0.52681285,66980.0,66979.0,0.00205393]
[1729671272672,0.62246339,66980.0,66979.0,0.00205393]
[1729671272897,0.51561175,66980.0,66979.0,0.00205393]
[1729671273143,0.6252615,66980.0,66979.0,0.00205393]
[1729671273362,0.52681112,66980.0,66979.0,0.00205393]
[1729671273587,0.76262499,66980.0,66979.0,0.00205393]
[1729671275167,0.76260601,66980.0,66979.0,0.00205393]
[1729671275604,0.7486068,66980.0,66979.0,0.00205393]
[1729671276034,0.63895705,66980.0,66979.0,0.00205393]
[1729671276259,0.7486068,66980.0,66979.0,0.00205393]
[1729671276477,0.63895705,66980.0,66979.0,0.00205393]
[1729671276694,0.7486068,66980.0,66979.0,0.00205393]
[1729671276919,0.63895705,66980.0,66979.0,0.00205393]
[1729671277934,0.62775768,66980.0,66979.0,0.00205393]
[1729671278058,0.63895523,66980.0,66979.0,0.00205393]
[1729671278728,0.51279111,66980.0,66979.0,0.00205393]
[1729671279651,0.52678734,66980.0,66979.0,0.00205393]
[1729671279899,0.52679046,66980.0,66979.0,0.00205393]
[1729671280357,0.51279423,66980.0,66979.0,0.00205393]
[1729671280571,0.5127935,66980.0,66979.0,0.00205393]
[1729671280802,0.29574375,66980.0,66979.0,0.00205393]
[1729671281020,0.30973911,66980.0,66979.0,0.00205393]
[1729671281694,0.29574375,66980.0,66979.0,0.00205393]
[1729671281918,0.17821138,66980.0,66979.0,0.00205393]
[1729671282140,0.192205,66980.0,66979.0,0.12149393]
[1729671282364,0.1164101,66980.0,66979.0,0.12149393]
[1729671282585,0.28177666,66980.0,66979.0,0.12149393]
[1729671283738,0.28177666,66980.0,66979.0,0.12036905]
[1729671284187,0.27057633,66980.0,66979.0,0.12036905]
[1729671284405,0.19219676,66980.0,66979.0,0.12036905]
[1729671284641,0.18100326,66980.0,66979.0,0.12036905]
[1729671284875,0.02682766,66980.0,66979.0,0.12036905]
[1729671285120,0.09399082,66980.0,66979.0,0.12036905]
[1729671285865,0.21342882,66980.0,66979.0,0.00092905]
[1729671286107,0.02682766,66980.0,66979.0,0.00092905]
[1729671286364,0.02682766,66980.0,66979.0,0.21986916]
[1729671286617,0.02682766,66980.0,66979.0,0.29861331]
[1729671286909,0.02682766,66980.0,66979.0,0.29850926]
[1729671287126,0.02682766,66980.0,66979.0,0.177625]
[1729671287653,0.02682766,66980.0,66979.0,0.297065]
[1729671287897,0.01283896,66980.0,66979.0,0.177625]
[1729671288124,0.02682095,66980.0,66979.0,0.078225]
[1729671288365,0.02682095,66980.0,66979.0,0.197665]
[1729671288613,0.02682095,66980.0,66979.0,0.19910926]
[1729671289600,0.02682095,66980.0,66979.0,0.07966926]
[1729671289833,0.02682095,66980.0,66979.0,0.19910926]
[1729671291585,0.01283896,66980.0,66979.0,0.19910926]
[1729671291834,0.02680087,66980.0,66979.0,0.19910926]
[1729671293625,0.01562186,66980.0,66979.0,0.19910926]
[1729671293871,0.01562186,66980.0,66979.0,0.42813173]
[1729671293872,0.02680087,66980.0,66979.0,0.42813173]
[1729671294129,0.001648,66980.0,66979.0,0.52303173]
[1729671296799,0.001648,66980.0,66979.0,0.44589922]
[1729671300655,0.11129775,66980.0,66979.0,0.20204007]
[1729671301165,0.11129775,66980.0,66979.0,0.08260007]
[1729671301166,0.11129775,66980.0,66979.0,0.19910926]
[1729671302118,0.001648,66980.0,66979.0,0.19910926]
[1729671303300,0.001648,66980.0,66979.0,0.27627177]
[1729671303840,0.001648,66980.0,66979.0,0.19910926]
[1729671306586,0.001648,66980.0,66979.0,0.34806841]
[1729671306819,0.001648,66980.0,66979.0,0.35099922]
[1729671307807,0.001648,66980.0,66979.0,0.44919922]
[1729671308839,0.075948,66980.0,66979.0,0.44919922]
[1729671309077,0.075948,66980.0,66979.0,0.44775496]
[1729671309331,0.10110413,66980.0,66979.0,0.44919922]
[1729671309591,0.08992363,66980.0,66979.0,0.27359922]
[1729671309836,0.10110751,66980.0,66979.0,0.27215496]
[1729671310826,0.10110751,66980.0,66979.0,0.27359922]
[1729671312791,0.10112185,66980.0,66979.0,0.27359922]
[1729671313847,0.10112185,66980.0,66979.0,0.00375581]
[1729671314103,0.22055985,66980.0,66979.0,0.000825]
[1729671314349,0.31535985,66980.0,66979.0,0.000825]
[1729671316076,0.30417597,66980.0,66979.0,0.000825]
[1729671316323,0.31537105,66980.0,66979.0,0.000825]
[1729671319670,0.22057105,66980.0,66979.0,0.000825]
[1729671319900,0.20658108,66980.0,66979.0,0.000825]
[1729671320361,0.08714308,66980.0,66979.0,0.000825]
[1729671321084,0.20658108,66980.0,66979.0,0.000825]
[1729671322029,0.2205703,66980.0,66979.0,0.000825]
[1729671323462,0.22056529,66980.0,66979.0,0.000825]
[1729671324241,0.26527081,66980.0,66979.0,0.000825]
[1729671325610,0.14583281,66980.0,66979.0,0.000825]
[1729671326301,0.10112729,66980.0,66979.0,0.000825]
[1729671326545,0.10112729,66980.0,66979.0,0.00226926]
[1729671327012,0.08993722,66980.0,66979.0,0.00226926]
[1729671327239,0.16818546,66980.0,66979.0,0.00226926]
[1729671327476,0.1541961,66980.0,66979.0,0.00226926]
[1729671327734,0.16818338,66980.0,66979.0,0.00226926]
[1729671328938,0.16826791,66980.0,66979.0,0.00226926]
[1729671329429,0.16826791,66980.0,66979.0,0.000825]
[1729671329430,0.28770591,66980.0,66979.0,0.000825]
[1729671329687,0.16826791,66980.0,66979.0,0.000825]
[1729671330179,0.28770591,66980.0,66979.0,0.000825]
[1729671330418,6.00302355,66980.0,66979.0,0.000825]
[1729671330653,0.38700474,66974.0,66973.0,0.0019]
[1729671330916,6.01437249,66974.0,66973.0,0.0019]
[1729671331167,6.01437249,66974.0,66943.0,0.000845]
[1729671331168,0.015,66967.0,66943.0,0.000845]
[1729671331416,0.258881,66956.0,66943.0,0.000845]
[1729671331658,0.74145388,66956.0,66943.0,0.000845]
[1729671331922,5.65782065,66956.0,66943.0,0.000845]
[1729671332171,6.1078924,66956.0,66943.0,0.000845]
[1729671332442,1.46126491,66956.0,66943.0,0.000845]
[1729671332692,1.54156441,66956.0,66943.0,0.000845]
[1729671332916,1.54212015,66956.0,66943.0,0.000845]
[1729671333157,1.54182932,66956.0,66943.0,0.000845]
[1729671333385,1.69078847,66956.0,66943.0,0.000845]
[1729671333882,1.70078847,66956.0,66943.0,0.000845]
[1729671334123,1.80078847,66956.0,66943.0,0.000845]
[1729671334353,1.75304871,66956.0,66943.0,0.000845]
[1729671335386,1.88709853,66956.0,66943.0,0.000845]
[1729671335635,0.46769438,66944.0,66943.0,0.000845]
[1729671335874,0.85540705,66944.0,66943.0,0.000845]
[1729671336108,6.1799304,66944.0,66943.0,0.000845]
[1729671336344,6.29136227,66944.0,66943.0,0.000845]
[1729671336596,6.0827515,66944.0,66943.0,0.000845]
[1729671336842,6.01596279,66944.0,66943.0,0.000845]
[1729671337572,6.01596279,66944.0,66943.0,0.001035]
[1729671338078,6.00480942,66944.0,66943.0,0.001035]
[1729671338304,6.0159229,66944.0,66943.0,0.001035]
[1729671338516,6.01591582,66944.0,66943.0,0.001035]
[1729671338959,6.02164881,66944.0,66943.0,0.001035]
[1729671339406,6.02164881,66944.0,66933.0,0.000845]
[1729671339407,0.124533,66927.0,66912.0,0.000845]
[1729671339624,0.37362919,66927.0,66912.0,0.000845]
[1729671339842,0.38473559,66927.0,66912.0,0.000845]
[1729671340059,5.43473559,66927.0,66912.0,0.000845]
[1729671340294,5.58369474,66927.0,66913.0,0.00293081]
[1729671340553,5.86459108,66927.0,66912.0,0.000845]
[1729671340761,5.7327776,66927.0,66912.0,0.000845]
[1729671340986,0.14809174,66925.0,66912.0,0.000845]
[1729671341211,5.46815729,66925.0,66912.0,0.000845]
[1729671341431,5.65689915,66925.0,66912.0,0.000845]
[1729671341650,3.6425607,66925.0,66912.0,0.000845]
[1729671341882,2.2155607,66925.0,66912.0,0.000845]
[1729671342097,2.1645607,66925.0,66912.0,0.000845]
[1729671342781,0.56160155,66925.0,66912.0,0.000845]
[1729671343006,0.54460155,66925.0,66912.0,0.000845]
[1729671344814,0.53349515,66925.0,66921.0,0.00144426]
[1729671345264,0.384536,66925.0,66916.0,0.00144426]
[1729671345490,0.384536,66925.0,66914.0,0.00144426]
[1729671346648,0.384536,66925.0,66912.0,0.000845]
[1729671346649,0.384536,66925.0,66920.0,0.00144426]
[1729671347102,0.384536,66925.0,66912.0,0.000845]
[1729671347103,0.384536,66925.0,66915.0,0.00144426]
[1729671348865,0.384536,66925.0,66920.0,0.00144426]
[1729671349771,0.384536,66925.0,66919.0,0.00228926]
[1729671349989,0.384536,66925.0,66919.0,0.000845]
[1729671350444,5.158536,66925.0,66919.0,0.000845]
[1729671350892,5.30749515,66925.0,66919.0,0.000845]
[1729671351353,4.62849515,66925.0,66919.0,0.000845]
[1729671352465,4.6395576,66925.0,66919.0,0.000845]
[1729671353383,4.96011294,66925.0,66919.0,0.000845]
[1729671353653,0.46773738,66920.0,66919.0,0.000845]
[1729671353870,5.75675898,66920.0,66919.0,0.000845]
[1729671354320,5.90887503,66920.0,66919.0,0.000845]
[1729671355697,0.124558,66913.0,66912.0,0.000845]
[1729671355923,5.59041926,66913.0,66912.0,0.000845]
[1729671356162,5.63253531,66913.0,66912.0,0.000845]
[1729671357287,5.63253531,66913.0,66888.0,0.000845]
[1729671357288,0.11959,66895.0,66888.0,0.000845]
[1729671357523,0.17159619,66892.0,66888.0,0.000845]
[1729671357753,0.119601,66889.0,66888.0,0.000845]
[1729671358444,0.29119219,66892.0,66891.0,0.00144426]
[1729671358680,0.119593,66894.0,66891.0,0.00144426]
[1729671358905,0.29118519,66896.0,66893.0,0.00144426]
[1729671359124,0.07285574,66894.0,66889.0,0.24213281]
[1729671359340,0.07285574,66894.0,66893.0,0.119593]
[1729671359804,0.07285574,66894.0,66890.0,0.358797]
[1729671360061,0.07285574,66894.0,66891.0,0.119596]
[1729671360292,0.07285574,66894.0,66893.0,0.119593]
[1729671360519,0.01112557,66895.0,66893.0,0.119593]
[1729671360759,0.01112557,66896.0,66893.0,0.119592]
[1729671361259,0.18272176,66896.0,66893.0,0.119592]
[1729671361506,0.01113507,66895.0,66893.0,0.119592]
[1729671361744,0.01113507,66894.0,66893.0,0.119592]
[1729671363189,0.01113507,66894.0,66893.0,0.35108196]
[1729671363452,0.0732,66895.0,66894.0,0.12252281]
[1729671363688,0.0732,66895.0,66894.0,0.27447132]
[1729671363931,0.0732,66895.0,66894.0,0.27426423]
[1729671364395,0.0732,66895.0,66894.0,0.45766423]
[1729671364653,0.0732,66895.0,66894.0,0.59768433]
[1729671365185,0.0732,66895.0,66894.0,0.70968433]
[1729671366893,0.22412479,66907.0,66906.0,0.12250081]
[1729671367123,0.22412479,66907.0,66906.0,0.44305615]
[1729671367601,0.22412479,66919.0,66918.0,0.119549]
[1729671367842,0.23529624,66919.0,66918.0,0.119549]
[1729671368312,0.01117145,66919.0,66918.0,0.119549]
[1729671370299,0.01117145,66919.0,66917.0,0.12247981]
[1729671370394,0.119549,66918.0,66914.0,0.119555]
[1729671370630,0.119554,66916.0,66912.0,0.00293081]
[1729671370856,0.119557,66914.0,66910.0,0.12249381]
[1729671370978,0.239102,66917.0,66910.0,0.12249381]
[1729671370979,0.01117145,66913.0,66910.0,0.00293081]
[1729671371208,0.01117145,66912.0,66910.0,0.00293081]
[1729671371429,0.239095,66919.0,66910.0,0.00293081]
[1729671371655,0.119569,66907.0,66903.0,0.00293081]
[1729671371875,0.17159619,66912.0,66903.0,0.24208081]
[1729671372096,0.01715962,66911.0,66904.0,0.239147]
[1729671372329,0.119564,66910.0,66905.0,0.119571]
[1729671372560,0.119568,66907.0,66903.0,0.12250581]
[1729671372770,0.01116765,66906.0,66904.0,0.119573]
[1729671372985,0.01116765,66905.0,66904.0,0.119573]
[1729671373426,0.01116765,66905.0,66903.0,0.00293081]
[1729671373644,0.239152,66903.0,66894.0,0.00293081]
[1729671373867,0.24216277,66904.0,66888.0,0.339648]
[1729671373868,0.17159619,66899.0,66891.0,0.00293081]
[1729671374148,0.36992304,66898.0,66893.0,0.119593]
[1729671374376,0.13075404,66897.0,66892.0,0.119594]
[1729671374584,0.25034404,66896.0,66890.0,0.00293081]
[1729671374810,0.119593,66894.0,66890.0,0.00293081]
[1729671375026,0.119593,66894.0,66888.0,0.240048]
[1729671375027,0.110001,66889.0,66888.0,0.000845]
[1729671375241,0.094201,66889.0,66888.0,0.000845]
[1729671375487,0.10536442,66889.0,66888.0,0.000845]
[1729671375742,0.10536442,66889.0,66888.0,0.120447]
[1729671375743,0.01116342,66889.0,66888.0,0.120447]
[1729671375963,0.01116342,66889.0,66888.0,0.000845]
[1729671376165,0.14471587,66889.0,66888.0,0.000845]
[1729671376601,0.31631206,66889.0,66888.0,0.000845]
[1729671378735,0.239192,66892.0,66888.0,0.000845]
[1729671378950,0.02509677,66889.0,66888.0,0.000845]
[1729671379175,0.14469777,66889.0,66888.0,0.000845]
[1729671379639,0.02509677,66889.0,66888.0,0.000845]
[1729671380081,0.01115412,66889.0,66888.0,0.000845]
[1729671381161,0.02509325,66889.0,66888.0,0.000845]
[1729671382482,0.119597,66891.0,66888.0,0.000845]
[1729671382712,0.01115008,66890.0,66888.0,0.000845]
[1729671382929,0.0139375,66889.0,66888.0,0.000845]
[1729671383149,0.0250875,66889.0,66888.0,0.000845]
[1729671383394,0.0139375,66889.0,66888.0,0.120447]
[1729671383862,0.0139375,66889.0,66888.0,0.000845]
[1729671385846,0.15996575,66889.0,66888.0,0.000845]
[1729671386080,0.15717825,66889.0,66888.0,0.000845]
[1729671386288,0.17111206,66889.0,66888.0,0.000845]
[1729671386503,0.05151106,66889.0,66888.0,0.000845]
[1729671386720,0.0403627,66889.0,66888.0,0.000845]
[1729671387168,0.01393545,66890.0,66888.0,0.000845]
[1729671387391,0.119601,66889.0,66888.0,0.000845]
[1729671387619,0.13353645,66889.0,66888.0,0.000845]
[1729671387831,0.14468397,66889.0,66888.0,0.000845]
[1729671389386,0.119601,66889.0,66888.0,0.000845]
[1729671392267,0.01393316,66890.0,66888.0,0.000845]
[1729671392702,0.119598,66891.0,66888.0,0.000845]
[1729671392922,0.03901187,66893.0,66888.0,0.000845]
[1729671392923,0.119599,66890.0,66888.0,0.000845]
[1729671393862,0.02507747,66891.0,66888.0,0.14980415]
[1729671394087,0.1335289,66891.0,66890.0,0.00293081]
[1729671394317,0.13074252,66891.0,66890.0,0.00293081]
[1729671394547,0.119597,66891.0,66890.0,0.00293081]
[1729671395254,0.18190154,66891.0,66890.0,0.00293081]
[1729671395479,0.18190154,66891.0,66888.0,0.000845]
[1729671395480,0.119601,66889.0,66888.0,0.000845]
[1729671395700,0.1335329,66889.0,66888.0,0.000845]
[1729671396420,0.53085769,66889.0,66888.0,0.000845]
[1729671396671,0.66136536,66889.0,66888.0,0.000845]
[1729671396899,0.44838826,66889.0,66888.0,0.000845]
[1729671397401,0.44838766,66889.0,66888.0,0.000845]
[1729671397632,0.32287999,66889.0,66888.0,0.000845]
[1729671398292,0.3117329,66889.0,66888.0,0.000845]
[1729671398982,0.2099329,66889.0,66888.0,0.000845]
[1729671399212,0.196001,66889.0,66888.0,0.000845]
[1729671399434,0.42012579,66889.0,66888.0,0.000845]
[1729671399654,0.196001,66889.0,66888.0,0.000845]
[1729671399868,0.20715475,66889.0,66888.0,0.000845]
[1729671400414,0.22110907,66889.0,66888.0,0.000845]
[1729671402706,0.22113244,66889.0,66888.0,0.000845]
[1729671402921,0.22613244,66889.0,66888.0,0.000845]
[1729671403149,0.45025723,66889.0,66888.0,0.000845]
[1729671403383,0.38908229,66889.0,66888.0,0.000845]
[1729671404568,5.43908229,66889.0,66888.0,0.000845]
[1729671404815,5.68334144,66889.0,66888.0,0.000845]
[1729671405522,5.70124527,66889.0,66888.0,0.000845]
[1729671405987,5.70324527,66889.0,66888.0,0.000845]
[1729671406644,5.7090463,66889.0,66888.0,0.000845]
[1729671406863,5.7070463,66889.0,66888.0,0.000845]
[1729671407094,5.7320463,66889.0,66888.0,0.000845]
[1729671407311,5.776646,66889.0,66888.0,0.000845]
[1729671407544,5.75874217,66889.0,66888.0,0.000845]
[1729671407822,5.71414247,66889.0,66888.0,0.000845]
[1729671408040,5.78104202,66889.0,66888.0,0.000845]
[1729671408265,5.78104202,66889.0,66849.0,0.249344]
[1729671408266,0.119646,66864.0,66857.0,0.24016]
[1729671408490,0.01394893,66863.0,66860.0,0.00293081]
[1729671408710,0.01394893,66863.0,66857.0,0.24016]
[1729671408711,0.13359793,66862.0,66857.0,0.00377581]
[1729671408927,0.01397403,66865.0,66857.0,0.00377581]
[1729671408928,0.01394893,66861.0,66860.0,0.119652]
[1729671409145,0.01394893,66861.0,66857.0,0.00377581]
[1729671409362,0.02515321,66865.0,66858.0,0.239313]
[1729671409584,0.01117918,66865.0,66860.0,0.119651]
[1729671409814,0.01396825,66864.0,66857.0,0.24308881]
[1729671410033,0.01396825,66863.0,66859.0,0.239309]
[1729671410255,0.01396825,66862.0,66861.0,0.11965]
[1729671410545,0.01396405,66865.0,66861.0,0.11965]
[1729671410766,0.01396405,66864.0,66857.0,0.24308881]
[1729671410981,0.02514285,66867.0,66857.0,0.24308881]
[1729671410982,0.01396405,66863.0,66862.0,0.119649]
[1729671411429,0.01396405,66863.0,66858.0,0.239313]
[1729671411430,0.01396405,66863.0,66860.0,0.119652]
[1729671411688,0.02513865,66862.0,66857.0,0.000845]
[1729671411908,0.02513865,66861.0,66858.0,0.119655]
[1729671412125,0.01396405,66860.0,66858.0,0.119655]
[1729671412347,0.01396405,66859.0,66857.0,0.000845]
[1729671412565,0.0111746,66863.0,66857.0,0.000845]
[1729671412802,0.01395314,66862.0,66857.0,0.24016]
[1729671413012,0.01395314,66861.0,66857.0,0.000845]
[1729671413239,0.01395314,66860.0,66857.0,0.000845]
[1729671413463,0.1308206,66864.0,66857.0,0.000845]
[1729671413682,0.22412479,66861.0,66857.0,0.000845]
[1729671413908,0.0139487,66860.0,66857.0,0.000845]
[1729671414146,0.0139487,66859.0,66857.0,0.000845]
[1729671414394,0.0139487,66858.0,66857.0,0.000845]
[1729671415302,0.0139487,66858.0,66857.0,0.120503]
[1729671416445,0.0139487,66859.0,66858.0,0.119656]
[1729671416666,0.22412479,66860.0,66859.0,0.119654]
[1729671416893,0.22412479,66860.0,66858.0,0.239312]
[1729671416894,0.22412479,66868.0,66866.0,0.119642]
[1729671417187,0.22412479,66868.0,66867.0,0.11964]
[1729671417415,0.24921279,66868.0,66867.0,0.11964]
[1729671417634,0.24921279,66868.0,66865.0,0.239286]
[1729671417851,0.025088,66867.0,66863.0,0.119645]
[1729671418084,0.025088,66867.0,66862.0,0.239295]
[1729671418085,0.01393778,66866.0,66862.0,0.239295]
[1729671418316,0.082,66872.0,66864.0,0.239291]
[1729671418317,0.01115022,66871.0,66864.0,0.239291]
[1729671418541,0.02508863,66870.0,66866.0,0.119641]
[1729671418764,0.201631,66872.0,66866.0,0.119641]
[1729671418765,0.01393841,66869.0,66866.0,0.119641]
[1729671418983,0.201631,66872.0,66860.0,0.00293081]
[1729671418984,0.01393841,66868.0,66860.0,0.00293081]
[1729671419236,0.01115022,66871.0,66867.0,0.11964]
[1729671419468,0.201632,66872.0,66865.0,0.119643]
[1729671419469,0.14472469,66870.0,66865.0,0.119643]
[1729671419717,0.01393947,66869.0,66866.0,0.119641]
[1729671419946,0.01393947,66868.0,66866.0,0.119641]
[1729671420203,0.201632,66872.0,66867.0,0.119639]
[1729671420428,0.02509177,66871.0,66864.0,0.239291]
[1729671420654,0.082,66872.0,66860.0,0.00293081]
[1729671420655,0.02509177,66870.0,66861.0,0.239302]
[1729671420874,0.0111519,66871.0,66869.0,0.119636]
[1729671421093,0.02509233,66870.0,66869.0,0.119636]
[1729671421330,0.01394043,66870.0,66867.0,0.239279]
[1729671421550,0.01394043,66869.0,66866.0,0.125641]
[1729671421778,0.01394043,66869.0,66867.0,0.11964]
[1729671421779,0.01394043,66868.0,66867.0,0.11964]
[1729671422245,0.01394043,66868.0,66866.0,0.006825]
[1729671422463,0.01394043,66867.0,66866.0,0.006825]
[1729671422684,0.35770522,66867.0,66866.0,0.006825]
[1729671422909,0.14752381,66867.0,66866.0,0.006825]
[1729671423153,0.14473233,66867.0,66866.0,0.006825]
[1729671423400,5.53863486,66867.0,66866.0,0.006825]
[1729671423660,5.67619761,66867.0,66866.0,0.006825]
[1729671424616,5.69850446,66867.0,66866.0,0.006825]
[1729671424887,5.72150446,66867.0,66866.0,0.006825]
[1729671425376,5.72350446,66867.0,66866.0,0.006825]
[1729671425858,5.83350446,66867.0,66866.0,0.006825]
[1729671426084,5.92117567,66867.0,66866.0,0.006825]
[1729671426346,5.81366197,66867.0,66866.0,0.006825]
[1729671426577,5.8760769,66867.0,66866.0,0.006825]
[1729671426802,6.12829542,66867.0,66866.0,0.006825]
[1729671427043,6.03907366,66867.0,66866.0,0.006825]
[1729671427308,5.96045274,66867.0,66866.0,0.006825]
[1729671427536,3.12579662,66867.0,66866.0,0.006825]
[1729671427783,3.17037304,66867.0,66866.0,0.006825]
[1729671428010,3.12579662,66867.0,66866.0,0.006825]
[1729671428540,3.17037347,66867.0,66866.0,0.006825]
[1729671428783,3.27475577,66867.0,66866.0,0.006825]
[1729671429014,3.3193274,66867.0,66866.0,0.006825]
[1729671429247,3.27675577,66867.0,66866.0,0.006825]
[1729671429527,1.48703747,66867.0,66866.0,0.006825]
[1729671429746,1.38703747,66867.0,66866.0,0.006825]
[1729671430745,5.3573493,66867.0,66866.0,0.006825]
[1729671430985,0.2385093,66867.0,66866.0,0.006825]
[1729671431235,0.06135011,66867.0,66866.0,0.006825]
[1729671431497,0.06135011,66867.0,66866.0,0.126467]
[1729671431964,0.05019551,66867.0,66866.0,0.126467]
[1729671432418,0.06135011,66867.0,66866.0,0.126467]
[1729671432659,0.05019551,66867.0,66866.0,0.126467]
[1729671432895,0.02788651,66867.0,66866.0,0.126467]
[1729671433123,0.01395917,66867.0,66866.0,0.12939781]
[1729671434103,0.01395917,66867.0,66866.0,0.28134786]
[1729671434365,0.01395917,66867.0,66866.0,0.36434786]
[1729671434585,0.22412479,66876.0,66872.0,0.00293081]
[1729671434586,0.03348927,66875.0,66872.0,0.00293081]
[1729671434813,0.34374879,66876.0,66870.0,0.119633]
[1729671434814,0.04745546,66874.0,66870.0,0.119633]
[1729671435042,0.34374879,66876.0,66872.0,0.00293081]
[1729671435043,0.01396619,66873.0,66872.0,0.00293081]
[1729671435537,0.03630086,66873.0,66872.0,0.12256181]
[1729671435768,0.03630086,66873.0,66872.0,0.00293081]
[1729671435769,0.01396619,66873.0,66872.0,0.00293081]
[1729671436022,0.03630086,66873.0,66868.0,0.00293081]
[1729671436284,0.06504912,66872.0,66866.0,0.00975581]
[1729671436540,0.02233467,66871.0,66867.0,0.11964]
[1729671436790,0.0474726,66870.0,66867.0,0.11964]
[1729671437052,0.0474726,66869.0,66867.0,0.11964]
[1729671437295,0.0474726,66868.0,66867.0,0.11964]
[1729671437531,0.03630086,66868.0,66866.0,0.12939681]
[1729671437769,0.03630086,66867.0,66866.0,0.12939681]
[1729671438012,0.01396619,66867.0,66866.0,0.126466]
[1729671438225,0.05811991,66867.0,66866.0,0.006825]
[1729671438488,0.03630086,66867.0,66866.0,0.006825]
[1729671438707,0.0474726,66867.0,66866.0,0.006825]
[1729671438957,0.03630086,66867.0,66866.0,0.006825]
[1729671439180,0.0474726,66867.0,66866.0,0.006825]
[1729671439398,0.03630086,66867.0,66866.0,0.126467]
[1729671439863,0.03630086,66867.0,66866.0,0.006825]
[1729671440596,0.1671126,66867.0,66866.0,0.006825]
[1729671440832,0.03630086,66867.0,66866.0,0.006825]
[1729671441294,0.1671126,66867.0,66866.0,0.006825]
[1729671441519,0.15594086,66867.0,66866.0,0.006825]
[1729671441752,0.0474726,66867.0,66866.0,0.006825]
[1729671441971,0.15594086,66867.0,66866.0,0.006825]
[1729671442189,0.0474726,66867.0,66866.0,0.006825]
[1729671442434,0.03630086,66867.0,66866.0,0.006825]
[1729671442668,0.1671126,66867.0,66866.0,0.006825]
[1729671442942,0.0474726,66867.0,66866.0,0.006825]
[1729671443162,0.03630086,66867.0,66866.0,0.006825]
[1729671443399,0.0474726,66867.0,66866.0,0.126467]
[1729671443626,0.03630086,66867.0,66866.0,0.126467]
[1729671443845,0.0474726,66867.0,66866.0,0.126467]
[1729671444068,0.03630086,66867.0,66866.0,0.126467]
[1729671444294,0.03630086,66867.0,66866.0,0.006825]
[1729671444997,0.0474726,66867.0,66866.0,0.006825]
[1729671445225,0.03630086,66867.0,66866.0,0.006825]
[1729671445918,0.0474726,66867.0,66866.0,0.126467]
[1729671446145,0.03630086,66867.0,66866.0,0.006825]
[1729671446396,0.03630086,66867.0,66866.0,0.12939781]
[1729671446631,0.01396619,66867.0,66866.0,0.00975581]
[1729671446855,0.119628,66874.0,66867.0,0.11964]
[1729671447078,0.01117433,66868.0,66867.0,0.11964]
[1729671447300,0.01117433,66872.0,66866.0,0.24903981]
[1729671447522,0.19955187,66874.0,66866.0,0.24903981]
[1729671447523,0.04749248,66871.0,66869.0,0.119636]
[1729671447749,0.04749248,66870.0,66869.0,0.119636]
[1729671448235,0.04749248,66870.0,66869.0,0.12256681]
[1729671448236,0.04749046,66870.0,66869.0,0.12256681]
[1729671448470,0.01396774,66870.0,66869.0,0.12256681]
[1729671450508,0.00165,66873.0,66869.0,0.12256681]
[1729671450509,0.00165,66873.0,66872.0,0.12256181]
[1729671450738,0.01561769,66873.0,66872.0,0.27152096]
[1729671451212,0.00165,66873.0,66872.0,0.27152096]
[1729671452559,0.00165,66873.0,66872.0,0.00293081]
[1729671452770,0.00165,66873.0,66872.0,0.12256181]
[1729671452771,0.01561122,66873.0,66872.0,0.12256181]
[1729671453442,0.01561122,66873.0,66872.0,0.00293081]
[1729671453896,0.01561122,66873.0,66872.0,0.12256181]
[1729671454361,0.00165,66873.0,66872.0,0.00293081]
[1729671454588,0.00165,66873.0,66869.0,0.00293081]
[1729671454589,0.01561122,66873.0,66869.0,0.00293081]
[1729671454817,0.01396122,66872.0,66869.0,0.00293081]
[1729671455039,0.01396122,66871.0,66869.0,0.12256681]
[1729671455252,0.12128,66873.0,66869.0,0.12256681]
[1729671455768,0.00165,66873.0,66869.0,0.00293081]
[1729671455981,0.01281746,66873.0,66870.0,0.119635]
[1729671456421,0.01281746,66873.0,66868.0,0.00293081]
[1729671456639,0.01281746,66873.0,66866.0,0.006825]
[1729671456640,0.01281746,66873.0,66870.0,0.00293081]
[1729671457093,0.119631,66872.0,66870.0,0.00293081]
[1729671457325,0.01281746,66873.0,66870.0,0.00293081]
[1729671457546,0.01116746,66872.0,66871.0,0.119633]
[1729671458269,0.01116746,66872.0,66870.0,0.00293081]
[1729671458504,0.03352201,66871.0,66870.0,0.12256481]